Workbook

Sheet Strategy Details
A1: AMC Name | B1: SEBI Reg NO | C1: Strategy Name | D1: AUM In Crs | E1: Strategy Incp. Date | F1: Portfolio Manager Name
A2: Marcellus Investment Managers | B2: INP000006183 | C2: Consistent Compounders | D2: 2143.822155 | E2: 2018-12-01 | F2: Rakshit Ranjan, CFA
A4: Category | B4: Benchmark | C4: Reporting Structure | E4: Fee structures | F4: Option 1 | G4: Fixed Fees Model | H4: 2% p.a. fixed fees + zero performance fees
A5: Large Cap | B5: Nifty 50 Total Return Index | C5: Model Portfolio | F5: Option 2 | G5: Variable Fees Model | H5: Zero fixed fees + performance fees of 20% profit share above a hurdle of 8%, no catch-up
F6: Option 3 | G6: Hybrid Model | H6: 1% p.a. fixed fees + performance fees of 15% profit share above a hurdle of 12%, no catch-up
A8: Portfolio Metrics | E8: Exit Fee | F8: 1st Year | G8: 2nd Year | H8: 3rd Year | I8: SIP Option | J8: STP Option
A9: Weighted Average Market Capitalisation (INR Cr.) | B9: 173860 | F9: NO EXIT FEES | G9: NO EXIT FEES | H9: NO EXIT FEES | I9: No | J9: No
A10: Portfolio P/E | B10: 62.6793161
A11: Dividend Yield | B11: 0.0108
A12: Churn Ratio | B12: 0.07
A13: Standard Deviation | B13: 0.09947156181
A14: Sharpe Ratio | B14: 1.515178495
A15: Portfolio Beta | B15: 0.5600071842
A16: Treynor Ratio | B16: 0.2691343532
A17: R2 Ratio | B17: 0.57599482
A18: Information Ratio | B18: 2.622407239
A19: Active share as of 31 Mar-19 | B19: 0.6666666667
A20: Active share as of 31 Mar-20 | B20: 0.5384615385
A21: Maximum Drawdown of Portfolio | B21: -0.2892679709
A22: Benchmark Drawdown | B22: -0.3827
E30: * Based on NAV's rebased to 100

Sheet Performance Data
A1: Monthly Performance vs Nifty50 | G1: Performance Summary | L1: Start Date | M1: 2018-12-01
A2: Month | B2: Marcellus CCP* | C2: Nifty50 | D2: Nifty-50 (Total Return Index) | E2: Date Range | H2: Marcellus CCP* | I2: Nifty50 | J2: Nifty-50 (Total Return Index) | L2: End Date | M2: =A25 -> 2020-10-31
A3: 2018-12-31 | B3: 0.01842 | C3: -0.00131 | D3: -0.00069 | E3: 1st Dec'18 to 31st Dec'18 | G3: 1-Month | H3: =B25 -> 0.06699 | I3: =C25 -> 0.03511 | J3: 0.03691 | L3: Factor | M3: =(M2-M1+1)/365 -> 1.920547945
A4: 2019-01-31 | B4: -0.00495 | C4: -0.00291 | D4: -0.00243 | E4: 31st Dec'18 to 31st Jan'19 | G4: 3-Months | H4: =ROUND(((1+B24)*(1+B25)*(1+B23)-1),5) -> 0.11365 | I4: =ROUND(((1+C24)*(1+C25)*(1+C23)-1),5) -> 0.05138 | J4: 0.05489
A5: 2019-02-28 | B5: -0.02122 | C5: -0.00355 | D5: -0.00219 | E5: 31st Jan'19 to 28th Feb'19 | G5: 6-Months | H5: =ROUND((1+B24)*(1+B22)*(1+B21)*(1+B20)*(1+B25)*(1+B23)-1,5) -> 0.15517 | I5: =ROUND((1+C24)*(1+C22)*(1+C21)*(1+C20)*(1+C25)*(1+C23)-1,5) -> 0.18078 | J5: 0.1887
A6: 2019-03-31 | B6: 0.05887 | C6: 0.07703 | D6: 0.07789 | E6: 28th Feb'19 to 31st Mar'19 | G6: 1-year | H6: =ROUND((1+B17)*(1+B16)*(1+B15)*(1+B14)*(1+B25)*(1+B23)*(1+B24)*(1+B22)*(1+B21)*(1+B20)*(1+B19)*(1+B18)-1,5) -> 0.09907 | I6: =ROUND((1+C17)*(1+C16)*(1+C15)*(1+C14)*(1+C25)*(1+C23)*(1+C24)*(1+C22)*(1+C21)*(1+C20)*(1+C19)*(1+C18)-1,5) -> -0.01979 | J6: -0.00978
A7: 2019-04-30 | B7: 0.00202 | C7: 0.01069 | D7: 0.01069 | E7: 31st Mar'19 to 30th Apr'19 | G7: Since Inception (Annualised) | H7: =ROUND(((1+B26)^(1/$M$3))-1,5) -> 0.19906 | I7: =ROUND(((1+C26)^(1/$M$3))-1,5) -> 0.03605 | J7: =ROUND(((1+D26)^(1/$M$3))-1,5) -> 0.04887
A8: 2019-05-31 | B8: -0.00109 | C8: 0.01487 | D8: 0.01623 | E8: 30th Apr'19 to 31st May'19
A9: 2019-06-30 | B9: 0.0016 | C9: -0.01123 | D9: -0.00902 | E9: 31st May'19 to 30th Jun'19 | G9: Period | H9: Marcellus CCP* | I9: Nifty50 | J9: Nifty-50 (TR)
A10: 2019-07-31 | B10: -0.01508 | C10: -0.05691 | D10: -0.05443 | E10: 30th Jun'19 to 31st Jul'19 | G10: FY 2019 | H10: =(1+B3)*(1+B4)*(1+B5)*(1+B6)-1 -> 0.0502665991 | I10: =(1+C3)*(1+C4)*(1+C5)*(1+C6)-1 -> 0.06868170306 | J10: 0.07217557245
A11: 2019-08-31 | B11: 0.0584 | C11: -0.00852 | D11: -0.00637 | E11: 31st Jul'19 to 31st Aug'19 | G11: FY 2020 | H11: =(1+B7)*(1+B8)*(1+B9)*(1+B10)*(1+B11)*(1+B12)*(1+B13)*(1+B14)*(1+B15)*(1+B16)*(1+B17)*(1+B18)-1 -> 0.07642538799 | I11: =(1+C7)*(1+C8)*(1+C9)*(1+C10)*(1+C11)*(1+C12)*(1+C13)*(1+C14)*(1+C15)*(1+C16)*(1+C17)*(1+C18)-1 -> -0.2603313919 | J11: -0.2502349133
A12: 2019-09-30 | B12: 0.11414 | C12: 0.04093 | D12: 0.04093 | E12: 31st Aug'19 to 30th Sep'19 | G12: FY 2021 | H12: =+(1+B25)*(1+B23)*(1+B24)*(1+B22)*(1+B19)*(1+B20)*(1+B21)-1 -> 0.2535290623 | I12: =+(1+C25)*(1+C23)*(1+C24)*(1+C22)*(1+C19)*(1+C20)*(1+C21)-1 -> 0.3541162278 | J12: 0.3633468638
A13: 2019-10-31 | B13: 0.0544 | C13: 0.03512 | D13: 0.03701 | E13: 30th Sep'19 to 31st Oct'19 | G13: CY 2018 | H13: =B3 -> 0.01842 | I13: =C3 -> -0.00131 | J13: -0.00069
A14: 2019-11-30 | B14: -0.02165 | C14: 0.01504 | D14: 0.01504 | E14: 31st Oct'19 to 30th Nov'19 | G14: CY 2019 | H14: =(1+B7)*(1+B8)*(1+B9)*(1+B10)*(1+B11)*(1+B12)*(1+B13)*(1+B14)*(1+B15)*(1+B6)*(1+B5)*(1+B4)-1 -> 0.2740465925 | I14: =(1+C7)*(1+C8)*(1+C9)*(1+C10)*(1+C11)*(1+C12)*(1+C13)*(1+C14)*(1+C15)*(1+C6)*(1+C5)*(1+C4)-1 -> 0.1202183857 | J14: 0.1347864846
A15: 2019-12-31 | B15: 0.02855 | C15: 0.00932 | D15: 0.00941 | E15: 30th Nov'19 to 31st Dec'19 | G15: CY 2021 | H15: =+(1+B25)*(1+B23)*(1+B24)*(1+B22)*(1+B17)*(1+B16)*(1+B21)*(1+B20)*(1+B19)*(1+B18)-1 -> 0.09220878025 | I15: =+(1+C25)*(1+C23)*(1+C24)*(1+C22)*(1+C17)*(1+C16)*(1+C21)*(1+C20)*(1+C19)*(1+C18)-1 -> -0.04322877251 | J15: -0.03354175121
A16: 2020-01-31 | B16: 0.05229 | C16: -0.01696 | D16: -0.01678 | E16: 31st Dec'19 to 31st Jan'20
A17: 2020-02-29 | B17: -0.01534 | C17: -0.06356 | D17: -0.06334 | E17: 31st Jan'20 to 29th Feb-20
A18: 2020-03-31 | B18: -0.15909 | C18: -0.23246 | D18: -0.23026 | E18: 29th Feb-20 to 31st Mar-20
A19: 2020-04-30 | B19: 0.08515 | C19: 0.1468 | D19: 0.14692 | E19: 31st Mar-20 to 30th Apr-20
A20: 2020-05-31 | B20: -0.02514 | C20: -0.02836 | D20: -0.02742 | E20: 30th Apr-20 to 31st May-20
A21: 2020-06-30 | B21: 0.03285 | C21: 0.07534 | D21: 0.07581 | E21: 31st May-20 to 30th Jun-20
A22: 2020-07-31 | B22: 0.03019 | C22: 0.07487 | D22: 0.07697 | E22: 30th Jun-20 to 31 Jul-20
A23: 2020-08-31 | B23: 0.03601 | C23: 0.02836 | D23: 0.0297 | E23: 31 Jul-20 to 31 Aug-20
A24: 2020-09-30 | B24: 0.00745 | C24: -0.01229 | D24: -0.012 | E24: 31 Aug-20 to 30 Sep-20
A25: 2020-10-31 | B25: 0.06699 | C25: 0.03511 | D25: 0.03691 | E25: 30 Sep-20 to 31 Oct-20
A26: Inception | B26: =+(1+B25)*(1+B23)*(1+B24)*(1+B22)*(1+B21)*(1+B20)*(1+B19)*(1+B18)*(1+B5)*(1+B4)*(1+B3)*(1+B17)*(1+B16)*(1+B15)*(1+B14)*(1+B13)*(1+B12)*(1+B11)*(1+B10)*(1+B9)*(1+B8)*(1+B7)*(1+B6)-1 -> 0.4171567629 | C26: =+(1+C25)*(1+C23)*(1+C24)*(1+C22)*(1+C21)*(1+C20)*(1+C19)*(1+C18)*(1+C5)*(1+C4)*(1+C3)*(1+C17)*(1+C16)*(1+C15)*(1+C14)*(1+C13)*(1+C12)*(1+C11)*(1+C10)*(1+C9)*(1+C8)*(1+C7)*(1+C6)-1 -> 0.07038867147 | D26: =+(1+D25)*(1+D23)*(1+D24)*(1+D22)*(1+D21)*(1+D20)*(1+D19)*(1+D18)*(1+D5)*(1+D4)*(1+D3)*(1+D17)*(1+D16)*(1+D15)*(1+D14)*(1+D13)*(1+D12)*(1+D11)*(1+D10)*(1+D9)*(1+D8)*(1+D7)*(1+D6)-1 -> 0.09596701923 | E26: 1st Dec'18 to 31 Oct-20
A27: * all returns are net of fees and expenses

Sheet Top 5 Holdings
A2: No | B2: Portfolio Holdings | C2: ISIN | D2: % Allocation | F2: Sector-wise allocation
A3: 1 | B3: Asian Paints | C3: INE021A01026 | D3: 0.12 | F3: Consumer staples | G3: 0.072
A4: 2 | B4: HDFC Bank | C4: INE040A01034 | D4: 0.1 | F4: Consumer discretionary | G4: 0.15
A5: 3 | B5: Bajaj Finance | C5: INE318A01026 | D5: 0.095 | F5: Pharma & Healthcare | G5: 0.16
A6: 4 | B6: Page Industries | C6: INE761H01022 | D6: 0.09 | F6: Financials | G6: 0.345
A7: 5 | B7: Pidilite Industries | C7: INE131B01039 | D7: 0.083 | F7: Home building Materials | G7: 0.263
F8: Cash | G8: 0.01
F10: Market-cap wise allocation****
F11: Large- Cap * | G11: 0.77
F12: Mid-Cap** | G12: 0.22
F13: Cash | G13: 0.01
F16: *Large Cap - market capitalisation of companies greater than INR 30,000 Crores
F17: **Mid Cap - market capitalisation of companies greater than INR 10,000 Crores but lesss than INR 30,000 crores
F18: ***Small Cap - market capitalisation of companies less than INR 10,000 Crores
F19: ****Categorization as per SEBI Circular SEBI/HO/IMD/DF3/CIR/P/2017/114 dated Oct 6, 2017. List obtained from AMFI
